lending/lending_fUSD_20241014
["ID","MTS","AMOUNT","RATE_DAILY","PERIOD"]
[340253013,1728921046675,-500.0,0.00021917,2]
[340253014,1728921046685,-5867.00299261,0.00021917,2]
[340253015,1728921046695,-152.86091437,0.00021917,2]
[340253016,1728921046705,-538.56853604,0.00021917,2]
[340253017,1728921046714,-500.0,0.00021917,2]
[340253018,1728921046724,-211.10404309,0.00021917,2]
[340253019,1728921046734,-645.38720668,0.00021917,2]
[340253020,1728921046744,-500.0,0.00021917,2]
[340253021,1728921046753,-500.0,0.00021917,2]
[340253022,1728921046763,-184.82958765,0.00021917,2]
[340253023,1728921046773,-500.0,0.00021917,2]
[340253024,1728921046782,-501.76916236,0.00021917,2]
[340253025,1728921046792,-517.85065521,0.00021917,2]
[340253026,1728921046802,-379.27652373,0.00021917,2]
[340253027,1728921046811,-516.63097954,0.00021917,2]
[340253028,1728921046821,-500.0,0.00021917,2]
[340253029,1728921046831,-500.0,0.00021917,2]
[340253030,1728921046841,-389.09414298,0.00021917,2]
[340253031,1728921046850,-500.0,0.00021917,2]
[340253032,1728921046860,-388.0315379,0.00021917,2]
[340253033,1728921046869,-500.0,0.00021917,2]
[340253034,1728921046879,-500.0,0.00021917,2]
[340253035,1728921046888,-500.0,0.00021917,2]
[340253036,1728921046898,-414.51024267,0.00021917,2]
[340253037,1728921046908,-500.0,0.00021917,2]
[340253038,1728921046918,-500.0,0.00021917,2]
[340253039,1728921046927,-647.07163756,0.00021917,2]
[340253040,1728921046937,-500.0,0.00021917,2]
[340253041,1728921046947,-500.0,0.00021917,2]
[340253042,1728921046957,-500.0,0.00021917,2]
[340253043,1728921046967,-648.09632002,0.00021917,2]
[340253044,1728921046981,-150.7251331,0.00021917,2]
[340253045,1728921046997,-500.0,0.00021917,2]
[340253046,1728921047007,-500.0,0.00021917,2]
[340253047,1728921047016,-500.0,0.00021917,2]
[340253048,1728921047026,-500.0,0.00021917,2]
[340253049,1728921047035,-500.0,0.00021917,2]
[340253050,1728921047044,-500.0,0.00021917,2]
[340253051,1728921047055,-500.0,0.00021917,2]
[340253052,1728921047064,-500.0,0.00021917,2]
[340253053,1728921047074,-209.56205563,0.00021917,2]
[340253054,1728921047083,-500.0,0.00021917,2]
[340253055,1728921047092,-500.0,0.00021917,2]
[340253056,1728921047102,-443.8,0.00021917,2]
[340253057,1728921047111,-500.0,0.00021917,2]
[340253058,1728921047121,-513.67090003,0.00021917,2]
[340253059,1728921047131,-500.0,0.00021917,2]
[340253060,1728921047141,-500.0,0.00021917,2]
[340253061,1728921047151,-500.0,0.00021917,2]
[340253062,1728921047162,-500.0,0.00021917,2]
[340253063,1728921047171,-173.25673881,0.00021917,2]
[340253064,1728921047181,-500.0,0.00021917,2]
[340253065,1728921047191,-632.05760889,0.00021917,2]
[340253066,1728921047200,-222.56656955,0.00021917,2]
[340253067,1728921047210,-535.7,0.00021917,2]
[340253068,1728921047220,-535.7,0.00021917,2]
[340253069,1728921047229,-535.7,0.00021917,2]
[340253070,1728921047244,-535.7,0.00021917,2]
[340253071,1728921047254,-535.7,0.00021917,2]
[340253072,1728921047263,-535.7,0.00021917,2]
[340253073,1728921047273,-535.7,0.00021917,2]
[340253074,1728921047282,-535.7,0.00021917,2]
[340253075,1728921047416,-535.7,0.00021917,2]
[340253076,1728921047427,-509.75521344,0.00021917,2]
[340253077,1728921047436,-500.0,0.00021917,2]
[340253078,1728921047446,-470.32578748,0.00021917,2]
[340253079,1728921047456,-500.0,0.00021917,2]
[340253080,1728921047466,-500.0,0.00021917,2]
[340253081,1728921047476,-500.0,0.00021917,2]
[340253082,1728921047486,-500.0,0.00021917,2]
[340253083,1728921047500,-503.96577799,0.00021917,2]
[340253084,1728921047509,-500.0,0.00021917,2]
[340253085,1728921047519,-500.0,0.00021917,2]
[340253086,1728921047529,-500.0,0.00021917,2]
[340253087,1728921047539,-500.0,0.00021917,2]
[340253088,1728921047548,-500.0,0.00021917,2]
[340253089,1728921047558,-500.0,0.00021917,2]
[340253090,1728921047568,-500.0,0.00021917,2]
[340253091,1728921047578,-500.0,0.00021917,2]
[340253092,1728921047588,-500.0,0.00021917,2]
[340253093,1728921047599,-500.0,0.00021917,2]
[340253094,1728921047609,-500.0,0.00021917,2]
[340253095,1728921047618,-519.11487693,0.00021917,2]
[340253096,1728921047628,-506.46777667,0.00021917,2]
[340253097,1728921047638,-553.66341334,0.00021917,2]
[340253098,1728921047647,-1536.5,0.00021917,2]
[340253099,1728921047657,-186.82187643,0.00021917,2]
[340253100,1728921047667,-1536.5,0.00021917,2]
[340253101,1728921047677,-1536.5,0.00021917,2]
[340253102,1728921047687,-1536.5,0.00021917,2]
[340253103,1728921047697,-1536.5,0.00021917,2]
[340253104,1728921047706,-1536.5,0.00021917,2]
[340253105,1728921047715,-1536.5,0.00021917,2]
[340253106,1728921047725,-1536.5,0.00021917,2]
[340253107,1728921047735,-508.03300572,0.00021917,2]
[340253108,1728921047750,-1536.5,0.00021917,2]
[340253109,1728921047759,-500.0,0.00021917,2]
[340253110,1728921047769,-500.0,0.00021917,2]
[340253111,1728921047778,-214.98486193,0.00021917,2]
[340253112,1728921047788,-507.66150723,0.00021917,2]
[340253113,1728921047798,-500.0,0.00021917,2]
[340253114,1728921047808,-500.0,0.00021917,2]
[340253115,1728921047818,-626.77520031,0.00021917,2]
[340253116,1728921047827,-500.0,0.00021917,2]
[340253117,1728921047837,-500.0,0.00021917,2]
[340253118,1728921047846,-500.0,0.00021917,2]
[340253119,1728921047856,-500.0,0.00021917,2]
[340253120,1728921047866,-500.0,0.00021917,2]
[340253121,1728921047875,-500.0,0.00021917,2]
[340253122,1728921047884,-500.0,0.00021917,2]
[340253123,1728921047894,-500.0,0.00021917,2]
[340253124,1728921047904,-500.0,0.00021917,2]
[340253125,1728921047914,-500.0,0.00021917,2]
[340253126,1728921047923,-500.0,0.00021917,2]
[340253127,1728921047932,-500.0,0.00021917,2]
[340253128,1728921047942,-500.0,0.00021917,2]
[340253129,1728921047951,-507.74118153,0.00021917,2]
[340253130,1728921047961,-500.0,0.00021917,2]
[340253131,1728921047972,-500.0,0.00021917,2]
[340253132,1728921047983,-500.0,0.00021917,2]
[340253133,1728921047995,-500.0,0.00021917,2]
[340253134,1728921048004,-395.50112482,0.00021917,2]
[340253135,1728921048014,-500.0,0.00021917,2]
[340253136,1728921048025,-375.29333603,0.00021917,2]
[340253137,1728921048036,-507.18511296,0.00021917,2]
[340253138,1728921048045,-516.78476466,0.00021917,2]
[340253139,1728921048055,-500.0,0.00021917,2]
[340253140,1728921048064,-203.45475101,0.00021917,2]
[340253141,1728921048074,-500.0,0.00021917,2]
[340253142,1728921048083,-194.96772577,0.00021917,2]
[340253143,1728921048092,-500.0,0.00021917,2]
[340253144,1728921048101,-166.48600872,0.00021917,2]
[340253145,1728921048111,-565.44106798,0.00021917,2]
[340253146,1728921048120,-189.177095,0.00021917,2]
[340253147,1728921048129,-543.74686575,0.00021917,2]
[340253148,1728921048139,-530.28774401,0.00021917,2]
[340253149,1728921048148,-528.04,0.00021917,2]
[340253150,1728921048157,-528.04,0.00021917,2]
[340253151,1728921048167,-528.04,0.00021917,2]
[340253152,1728921048177,-528.04,0.00021917,2]
[340253153,1728921048186,-528.04,0.00021917,2]
[340253154,1728921048195,-1556.98,0.00021917,2]
[340253155,1728921048205,-528.04,0.00021917,2]
[340253156,1728921048214,-1556.98,0.00021917,2]
[340253157,1728921048223,-528.04,0.00021917,2]
[340253158,1728921048232,-1556.98,0.00021917,2]
[340253159,1728921048242,-528.04,0.00021917,2]
[340253160,1728921048252,-1556.98,0.00021917,2]
[340253161,1728921048261,-528.04,0.00021917,2]
[340253162,1728921048271,-1556.98,0.00021917,2]
[340253163,1728921048281,-1556.98,0.00021917,2]
[340253164,1728921048291,-1556.98,0.00021917,2]
[340253165,1728921048301,-500.0,0.00021917,2]
[340253166,1728921048310,-626.0802714,0.00021917,2]
[340253167,1728921048319,-1556.98,0.00021917,2]
[340253168,1728921048329,-1556.98,0.00021917,2]
[340253169,1728921048339,-500.0,0.00021917,2]
[340253170,1728921048348,-500.0,0.00021917,2]
[340253171,1728921048357,-595.44699274,0.00021917,2]
[340253172,1728921048367,-500.0,0.00021917,2]
[340253173,1728921048376,-500.0,0.00021917,2]
[340253174,1728921048385,-500.0,0.00021917,2]
[340253175,1728921048394,-506.91764658,0.00021917,2]
[340253176,1728921048404,-500.0,0.00021917,2]
[340253177,1728921048413,-500.0,0.00021917,2]
[340253178,1728921048422,-500.0,0.00021917,2]
[340253179,1728921048431,-500.0,0.00021917,2]
[340253180,1728921048441,-525.67463208,0.00021917,2]
[340253181,1728921048450,-500.0,0.00021917,2]
[340253182,1728921048460,-287.30292415,0.00021917,2]
[340253183,1728921048469,-267.54604881,0.00021917,2]
[340253184,1728921048479,-500.0,0.00021917,2]
[340253185,1728921048491,-548.0701251,0.00021917,2]
[340253186,1728921048500,-500.0,0.00021917,2]
[340253187,1728921048510,-281.84736676,0.00021917,2]
[340253188,1728921048519,-212.99248661,0.00021917,2]
[340253189,1728921048528,-499.865999,0.00021917,2]
[340253190,1728921048538,-164.23080083,0.00021917,2]
[340253191,1728921048548,-521.72922619,0.00021917,2]
[340253192,1728921048557,-521.02578406,0.00021917,2]
[340253193,1728921048567,-500.0,0.00021917,2]
[340253194,1728921048576,-500.0,0.00021917,2]
[340253195,1728921048586,-433.15453811,0.00021917,2]
[340253196,1728921048595,-520.00315608,0.00021917,2]
[340253197,1728921048605,-226.49123144,0.00021917,2]
[340253198,1728921048615,-520.00139913,0.00021917,2]
[340253199,1728921048624,-211.78043887,0.00021917,2]
[340253200,1728921048634,-509.99518821,0.00021917,2]
[340253201,1728921048643,-562.65536016,0.00021917,2]
[340253202,1728921048653,-500.0,0.00021917,2]
[340253203,1728921048662,-546.43209223,0.00021917,2]
[340253204,1728921048672,-500.0,0.00021917,2]
[340253205,1728921048681,-500.0,0.00021917,2]
[340253206,1728921048690,-277.5703595,0.00021917,2]
[340253207,1728921048699,-515.26632738,0.00021917,2]
[340253208,1728921048709,-500.0,0.00021917,2]
[340253209,1728921048719,-500.0,0.00021917,2]
[340253210,1728921048728,-368.50598294,0.00021917,2]
[340253211,1728921048739,-515.33977318,0.00021917,2]
[340253212,1728921048749,-519.54477248,0.00021917,2]
[340253213,1728921048759,-507.82775859,0.00021917,2]
[340253214,1728921048769,-516.72789923,0.00021917,2]
[340253215,1728921048779,-500.0,0.00021917,2]
[340253216,1728921048791,-500.0,0.00021917,2]
[340253217,1728921048801,-588.34959236,0.00021917,2]
[340253218,1728921048810,-150.0,0.00021917,2]
[340253219,1728921048820,-150.0,0.00021917,2]
[340253220,1728921048829,-150.0,0.00021917,2]
[340253221,1728921048838,-150.0,0.00021917,2]
[340253222,1728921048848,-150.0,0.00021917,2]
[340253223,1728921048858,-240.01451614,0.00021917,2]
[340253224,1728921048868,-150.0,0.00021917,2]
[340253225,1728921048878,-150.0,0.00021917,2]
[340253226,1728921048887,-150.0,0.00021917,2]
[340253227,1728921048897,-187.35125129,0.00021917,2]
[340253228,1728921048907,-500.0,0.00021917,2]
[340253229,1728921048917,-505.34820459,0.00021917,2]
[340253230,1728921048927,-507.94754035,0.00021917,2]
[340253231,1728921048937,-527.122611,0.00021917,2]
[340253232,1728921048947,-500.0,0.00021917,2]
[340253233,1728921048956,-586.77755099,0.00021917,2]
[340253234,1728921048966,-589.30398105,0.00021917,2]
[340253235,1728921048976,-504.90803457,0.00021917,2]
[340253236,1728921048990,-500.0,0.00021917,2]
[340253237,1728921049000,-230.25958733,0.00021917,2]
[340253238,1728921049010,-500.0,0.00021917,2]
[340253239,1728921049021,-534.24775667,0.00021917,2]
[340253240,1728921049031,-500.0,0.00021917,2]
[340253241,1728921049041,-500.0,0.00021917,2]
[340253242,1728921049051,-500.0,0.00021917,2]
[340253243,1728921049063,-500.0,0.00021917,2]
[340253244,1728921049074,-514.75005758,0.00021917,2]
[340253245,1728921049084,-500.0,0.00021917,2]
[340253246,1728921049095,-414.40873743,0.00021917,2]
[340253247,1728921049104,-500.0,0.00021917,2]
[340253248,1728921049114,-185.66687356,0.00021917,2]
[340253249,1728921049124,-158.04708408,0.00021917,2]
[340253250,1728921049133,-548.04236069,0.00021917,2]
[340253251,1728921049143,-500.0,0.00021917,2]
[340253252,1728921049153,-500.0,0.00021917,2]
[340253253,1728921049163,-365.64528059,0.00021917,2]
[340253254,1728921049173,-500.0,0.00021917,2]
[340253255,1728921049183,-500.0,0.00021917,2]
[340253256,1728921049192,-546.05120391,0.00021917,2]
[340253257,1728921049202,-500.0,0.00021917,2]
[340253258,1728921049212,-500.0,0.00021917,2]
[340253259,1728921049222,-500.0,0.00021917,2]
[340253260,1728921049231,-500.0,0.00021917,2]
[340253261,1728921049243,-500.0,0.00021917,2]
[340253262,1728921049255,-500.0,0.00021917,2]
[340253263,1728921049264,-500.0,0.00021917,2]
[340253264,1728921049273,-500.0,0.00021917,2]
[340253265,1728921049283,-204.02934712,0.00021917,2]
[340253266,1728921049293,-500.0,0.00021917,2]
[340253267,1728921049303,-176.12912603,0.00021917,2]
[340253268,1728921049313,-182.8231239,0.00021917,2]
[340253269,1728921049322,-624.04477059,0.00021917,2]
[340253270,1728921049332,-500.0,0.00021917,2]
[340253271,1728921049342,-524.22364946,0.00021917,2]
[340253272,1728921049352,-493.97714158,0.00021917,2]
[340253273,1728921049361,-538.79425227,0.00021917,2]
[340253274,1728921049372,-500.0,0.00021917,2]
[340253275,1728921049382,-500.0,0.00021917,2]
[340253276,1728921049392,-500.0,0.00021917,2]
[340253277,1728921049401,-500.0,0.00021917,2]
[340253278,1728921049412,-500.0,0.00021917,2]
[340253279,1728921049422,-164.93347167,0.00021917,2]
[340253280,1728921049431,-500.0,0.00021917,2]
[340253281,1728921049440,-500.0,0.00021917,2]
[340253282,1728921049450,-500.0,0.00021917,2]
[340253283,1728921049459,-500.0,0.00021917,2]
[340253284,1728921049468,-500.0,0.00021917,2]
[340253285,1728921049478,-319.6542007,0.00021917,2]
[340253286,1728921049488,-500.0,0.00021917,2]
[340253287,1728921049499,-500.0,0.00021917,2]
[340253288,1728921049508,-500.0,0.00021917,2]
[340253289,1728921049518,-500.0,0.00021917,2]
[340253290,1728921049527,-500.0,0.00021917,2]
[340253291,1728921049537,-500.0,0.00021917,2]
[340253292,1728921049547,-500.0,0.00021917,2]
[340253293,1728921049556,-371.07214886,0.00021917,2]
[340253294,1728921049566,-158.83285813,0.00021917,7]
[340253295,1728921049577,-521.55746846,0.00021917,2]
[340253296,1728921049586,-500.0,0.00021917,2]
[340253297,1728921049596,-505.5725961,0.00021917,2]
[340253298,1728921049605,-500.0,0.00021917,2]
[340253299,1728921049615,-500.0,0.00021917,2]
[340253300,1728921049626,-500.0,0.00021917,2]
[340253301,1728921049635,-500.0,0.00021917,2]
[340253302,1728921049645,-542.72331764,0.00021917,2]
[340253303,1728921049654,-500.0,0.00021917,2]
[340253304,1728921049663,-516.67094918,0.00021917,2]
[340253305,1728921049673,-500.0,0.00021917,2]
[340253306,1728921049683,-500.0,0.00021917,2]
[340253307,1728921049692,-548.93237941,0.00021917,2]
[340253308,1728921049702,-500.0,0.00021917,2]
[340253309,1728921049711,-500.0,0.00021917,2]
[340253310,1728921049721,-500.0,0.00021917,2]
[340253311,1728921049731,-977.09,0.00021917,2]
[340253312,1728921049741,-564.94357436,0.00021917,2]
[340253313,1728921049751,-977.09,0.00021917,2]
[340253314,1728921049760,-977.09,0.00021917,2]
[340253315,1728921049770,-977.09,0.00021917,2]
[340253316,1728921049780,-500.0,0.00021917,2]
[340253317,1728921049790,-500.0,0.00021917,2]
[340253318,1728921049800,-977.09,0.00021917,2]
[340253319,1728921049810,-485.88999893,0.00021917,2]
[340253320,1728921049820,-977.09,0.00021917,2]
[340253321,1728921049829,-977.09,0.00021917,2]
[340253322,1728921049839,-977.09,0.00021917,2]
[340253323,1728921049848,-977.09,0.00021917,2]
[340253324,1728921049858,-500.0,0.00021917,2]
[340253325,1728921049867,-500.0,0.00021917,2]
[340253326,1728921049877,-150.04779783,0.00021917,2]
[340253327,1728921049886,-500.0,0.00021917,2]
[340253328,1728921049896,-500.0,0.00021917,2]
[340253329,1728921049905,-500.0,0.00021917,2]
[340253330,1728921049915,-500.0,0.00021917,2]
[340253331,1728921049924,-302.6042738,0.00021917,2]
[340253332,1728921049934,-422.44198275,0.00021917,2]
[340253333,1728921049944,-516.10612397,0.00021917,2]
[340253334,1728921049954,-500.0,0.00021917,2]
[340253335,1728921049964,-500.0,0.00021917,2]
[340253336,1728921049975,-510.64301671,0.00021917,2]
[340253337,1728921049988,-500.0,0.00021917,2]
[340253338,1728921049998,-500.0,0.00021917,2]
[340253339,1728921050008,-500.0,0.00021917,2]
[340253340,1728921050019,-500.0,0.00021917,2]
[340253341,1728921050029,-500.0,0.00021917,2]
[340253342,1728921050038,-500.0,0.00021917,2]
[340253343,1728921050047,-500.0,0.00021917,2]
[340253344,1728921050058,-500.0,0.00021917,2]
[340253345,1728921050068,-500.0,0.00021917,2]
[340253346,1728921050078,-336.56894463,0.00021917,2]
[340253347,1728921050087,-500.0,0.00021917,2]
[340253348,1728921050098,-500.0,0.00021917,2]
[340253349,1728921050107,-508.63853318,0.00021917,2]
[340253350,1728921050118,-501.48697256,0.00021917,2]
[340253351,1728921050249,-500.0,0.00021917,2]
[340253352,1728921050259,-511.3163901,0.00021917,2]
[340253353,1728921050269,-500.0,0.00021917,2]
[340253354,1728921050279,-500.0,0.00021917,2]
[340253355,1728921050293,-107.11865089,0.00021917,2]
[340253356,1728921050471,-403.13898978,0.00021917,2]
[340253357,1728921050480,-582.0931783,0.00021917,2]
[340253358,1728921050492,-203.0860388,0.00021917,2]
[340253359,1728921050502,-184.47630073,0.00021917,2]
[340253360,1728921050511,-535.68653418,0.00021917,2]
[340253361,1728921050521,-502.74096451,0.00021917,2]
[340253362,1728921050530,-552.57017626,0.00021917,2]
[340253363,1728921050540,-500.0,0.00021917,2]
[340253364,1728921050550,-500.0,0.00021917,2]
[340253365,1728921050560,-500.0,0.00021917,2]
[340253366,1728921050570,-333.57922152,0.00021917,2]
[340253367,1728921050580,-500.0,0.00021917,2]
[340253368,1728921050590,-500.0,0.00021917,2]
[340253369,1728921050599,-392.63567768,0.00021917,2]
[340253370,1728921050610,-507.50981286,0.00021917,2]
[340253371,1728921050619,-575.92650073,0.00021917,2]
[340253372,1728921050629,-1583.67,0.00021917,2]
[340253373,1728921050639,-1583.67,0.00021917,2]
[340253374,1728921050650,-1583.67,0.00021917,2]
[340253375,1728921050659,-1583.67,0.00021917,2]
[340253376,1728921050669,-1583.67,0.00021917,2]
[340253377,1728921050678,-1583.67,0.00021917,2]
[340253378,1728921050687,-509.98332948,0.00021917,2]
[340253379,1728921050696,-1583.67,0.00021917,2]
[340253380,1728921050706,-1583.67,0.00021917,2]
[340253381,1728921050715,-564.60633451,0.00021917,2]
[340253382,1728921050725,-1583.67,0.00021917,2]
[340253383,1728921050735,-500.0,0.00021917,2]
[340253384,1728921050748,-500.0,0.00021917,2]
[340253385,1728921050760,-532.58884605,0.00021917,2]
[340253386,1728921050769,-500.0,0.00021917,2]
[340253387,1728921050779,-500.0,0.00021917,2]
[340253388,1728921050788,-633.06620339,0.00021917,2]
[340253389,1728921050798,-500.0,0.00021917,2]
[340253390,1728921050807,-500.0,0.00021917,2]
[340253391,1728921050816,-263.81555073,0.00021917,2]
[340253392,1728921050826,-548.44267118,0.00021917,2]
[340253393,1728921050835,-500.0,0.00021917,2]
[340253394,1728921050845,-514.95103405,0.00021917,2]
[340253395,1728921050855,-507.29955549,0.00021917,2]
[340253396,1728921050865,-525.69839887,0.00021917,2]
[340253397,1728921050875,-500.0,0.00021917,2]
[340253398,1728921050887,-500.0,0.00021917,2]
[340253399,1728921050896,-535.32230235,0.00021917,2]
[340253400,1728921050906,-500.0,0.00021917,2]
[340253401,1728921050916,-500.0,0.00021917,2]
[340253402,1728921050925,-500.0,0.00021917,2]
[340253403,1728921050935,-500.0,0.00021917,2]
[340253404,1728921050946,-412.02163581,0.00021917,2]
[340253405,1728921050956,-500.0,0.00021917,2]
[340253406,1728921050967,-500.0,0.00021917,2]
[340253407,1728921050979,-500.0,0.00021917,2]
[340253408,1728921050990,-500.0,0.00021917,2]
[340253409,1728921051004,-500.0,0.00021917,2]
[340253410,1728921051013,-500.0,0.00021917,2]
[340253411,1728921051023,-500.0,0.00021917,2]
[340253412,1728921051033,-500.0,0.00021917,2]
[340253413,1728921051043,-500.0,0.00021917,2]
[340253414,1728921051055,-500.0,0.00021917,2]
[340253415,1728921051065,-507.26683604,0.00021917,2]
[340253416,1728921051075,-500.0,0.00021917,2]
[340253417,1728921051085,-500.0,0.00021917,2]
[340253418,1728921051095,-320.57800832,0.00021917,2]
[340253419,1728921051105,-500.0,0.00021917,2]
[340253420,1728921051114,-155.41277521,0.00021917,2]
[340253421,1728921051124,-506.74770092,0.00021917,2]
[340253422,1728921051134,-500.0,0.00021917,2]
[340253423,1728921051144,-500.0,0.00021917,2]
[340253424,1728921051153,-500.0,0.00021917,2]
[340253425,1728921051164,-596.38405478,0.00021917,2]
[340253426,1728921051173,-219.28786827,0.00021917,2]
[340253427,1728921051183,-379.31023729,0.00021917,2]
[340253428,1728921051193,-519.2056789,0.00021917,2]
[340253429,1728921051203,-500.0,0.00021917,2]
[340253430,1728921051213,-586.08232044,0.00021917,2]
[340253431,1728921051223,-500.0,0.00021917,2]
[340253432,1728921051233,-500.0,0.00021917,2]
[340253433,1728921051245,-443.61523951,0.00021917,2]
[340253434,1728921051255,-500.0,0.00021917,2]
[340253435,1728921051265,-500.0,0.00021917,2]
[340253436,1728921051275,-261.35214464,0.00021917,2]
[340253437,1728921051285,-500.0,0.00021917,2]
[340253438,1728921051294,-646.71796053,0.00021917,2]
[340253439,1728921051304,-505.32181549,0.00021917,2]
[340253440,1728921051313,-505.6282939,0.00021917,2]
[340253441,1728921051322,-500.0,0.00021917,2]
[340253442,1728921051333,-531.12795947,0.00021917,2]
[340253443,1728921051342,-565.83880483,0.00021917,2]
[340253444,1728921051351,-271.56134824,0.00021917,2]
[340253445,1728921051361,-243.4646842,0.00021917,2]
[340253446,1728921051371,-210.51756549,0.00021917,2]
[340253447,1728921051380,-500.0,0.00021917,2]
[340253448,1728921051390,-243.5721827,0.00021917,2]
[340253449,1728921051400,-500.0,0.00021917,2]
[340253450,1728921051410,-513.95194399,0.00021917,2]
[340253451,1728921051420,-500.0,0.00021917,2]
[340253452,1728921051430,-215.7550697,0.00021917,2]
[340253453,1728921051439,-366.53151094,0.00021917,2]
[340253454,1728921051448,-589.63169952,0.00021917,2]
[340253455,1728921051458,-500.0,0.00021917,2]
[340253456,1728921051467,-500.0,0.00021917,2]
[340253457,1728921051477,-500.0,0.00021917,2]
[340253458,1728921051486,-500.0,0.00021917,2]
[340253459,1728921051498,-279.06407049,0.00021917,2]
[340253460,1728921051507,-510.83733591,0.00021917,2]
[340253461,1728921051517,-227.04658551,0.00021917,2]
[340253462,1728921051527,-500.0,0.00021917,2]
[340253463,1728921051536,-500.0,0.00021917,2]
[340253464,1728921051546,-566.81428416,0.00021917,2]
[340253465,1728921051556,-210.24494033,0.00021917,2]
[340253466,1728921051566,-177.9076,0.00021917,2]
[340253467,1728921051575,-500.0,0.00021917,2]
[340253468,1728921051585,-177.9076,0.00021917,2]
[340253469,1728921051595,-500.0,0.00021917,2]
[340253470,1728921051605,-500.0,0.00021917,2]
[340253471,1728921051614,-177.9076,0.00021917,2]
[340253472,1728921051624,-500.0,0.00021917,2]
[340253473,1728921051634,-541.88722666,0.00021917,2]
[340253474,1728921051644,-177.9076,0.00021917,2]
[340253475,1728921051654,-500.0,0.00021917,2]
[340253476,1728921051663,-500.0,0.00021917,2]
[340253477,1728921051673,-177.9076,0.00021917,2]
[340253478,1728921051682,-522.48181298,0.00021917,2]
[340253479,1728921051692,-324.12204772,0.00021917,2]
[340253480,1728921051701,-500.0,0.00021917,2]
[340253481,1728921051711,-439.52136836,0.00021917,2]
[340253482,1728921051720,-500.0,0.00021917,2]
[340253483,1728921051730,-532.92989564,0.00021917,2]
[340253484,1728921051742,-500.0,0.00021917,2]
[340253485,1728921051751,-177.9076,0.00021917,2]
[340253486,1728921051761,-500.0,0.00021917,2]
[340253487,1728921051771,-177.9076,0.00021917,2]
[340253488,1728921051781,-500.0,0.00021917,2]
[340253489,1728921051790,-516.87815601,0.00021917,2]
[340253490,1728921051800,-500.0,0.00021917,2]
[340253491,1728921051810,-500.0,0.00021917,2]
[340253492,1728921051820,-177.9076,0.00021917,2]
[340253493,1728921051830,-500.0,0.00021917,2]
[340253494,1728921051841,-500.0,0.00021917,2]
[340253495,1728921051851,-177.9076,0.00021917,2]
[340253496,1728921051860,-539.48741944,0.00021917,2]
[340253497,1728921051871,-500.0,0.00021917,2]
[340253498,1728921051881,-177.9076,0.00021917,2]
[340253499,1728921051891,-500.0,0.00021917,2]
[340253500,1728921051902,-500.0,0.00021917,2]
[340253501,1728921051912,-500.0,0.00021917,2]
[340253502,1728921051921,-500.0,0.00021917,2]
[340253503,1728921051931,-500.0,0.00021917,2]
[340253504,1728921051942,-500.0,0.00021917,2]
[340253505,1728921051952,-223.4312695,0.00021917,2]
[340253506,1728921051962,-500.0,0.00021917,2]
[340253507,1728921051972,-500.0,0.00021917,2]
[340253508,1728921051986,-517.7573416,0.00021917,2]
[340253509,1728921051997,-500.0,0.00021917,2]
[340253510,1728921052006,-500.0,0.00021917,2]
[340253511,1728921052016,-500.0,0.00021917,2]
[340253512,1728921052027,-500.0,0.00021917,2]